bitfinex/quotes_ETHUSD_20220112
["timestamp","ask_amount","ask_price","bid_price","bid_amount"]
[1641948565477,0.03075054,3233.2,3233.1,2.85176164]
[1641948565675,0.03075054,3233.2,3233.1,1.89947164]
[1641948565876,0.03075054,3233.2,3233.1,1.79271]
[1641948566078,0.03075054,3233.2,3233.1,0.49271]
[1641948566276,0.00113685,3233.2,3233.1,0.445]
[1641948567075,0.00113685,3233.2,3233.1,2.995]
[1641948567878,0.00113685,3233.2,3233.1,3.995]
[1641948568078,0.00113685,3233.2,3233.1,5.55662]
[1641948568337,0.00113685,3233.2,3233.1,8.05692008]
[1641948569527,0.05667,3234.1,3233.2,5.55]
[1641948569730,0.00668,3234.7,3233.4,18.08]
[1641948569927,7.7785,3235.2,3233.7,0.7728851]
[1641948569928,10.54981388,3235.2,3233.7,0.7728851]
[1641948570129,7.7785,3235.2,3233.8,0.445]
[1641948570328,0.01080004,3235.1,3233.8,3.21631388]
[1641948570532,1.10326938,3234.5,3234.1,1.3523014]
[1641948570929,0.00682108,3234.4,3233.9,1.0]
[1641948571128,0.00682108,3234.4,3234.0,0.3]
[1641948571330,0.00625265,3234.3,3234.0,0.3]
[1641948571728,1.10326938,3234.5,3234.0,0.3]
[1641948571729,0.00568423,3234.2,3234.0,0.3]
[1641948572163,0.00511581,3234.1,3234.0,0.3]
[1641948573069,0.00511581,3234.1,3233.9,0.5223]
[1641948573264,0.00511581,3234.1,3233.9,1.5223]
[1641948573468,1.52787068,3234.0,3233.9,0.0773]
[1641948573666,1.52787068,3234.0,3233.1,0.445]
[1641948574065,0.00397896,3233.9,3233.1,0.445]
[1641948574266,0.77331,3233.8,3232.9,3.2728]
[1641948574467,0.77672054,3233.8,3232.9,3.2728]
[1641948574667,0.00284211,3233.7,3233.0,0.00113685]
[1641948575066,0.00227369,3233.6,3233.0,0.00113685]
[1641948575267,0.00227369,3233.6,3233.0,2.77245073]
[1641948575467,0.00170527,3233.5,3233.1,0.07731]
[1641948575766,0.00113684,3233.4,3233.1,0.07731]
[1641948575959,0.00113684,3233.4,3233.1,0.52231]
[1641948576159,0.00454738,3234.0,3233.1,0.07731]
[1641948576359,0.00454738,3234.0,3233.0,0.00113685]
[1641948576559,0.00397896,3233.9,3233.0,0.00113685]
[1641948576759,0.77329,3233.8,3232.8,2.77358758]
[1641948576959,0.77329,3233.8,3232.7,1.6335]
[1641948576960,1.32371046,3233.0,3232.9,3.30170527]
[1641948577163,1.32371046,3233.0,3232.9,0.00170527]
[1641948577564,1.32371046,3233.0,3232.7,0.00284212]
[1641948577761,1.32371046,3233.0,3232.5,0.00397897]
[1641948577762,0.7735,3232.9,3232.5,0.00397897]
[1641948577962,1.32371046,3233.0,3232.4,0.00454739]
[1641948580968,1.32371046,3233.0,3232.4,1.00454739]
[1641948581466,1.32371046,3233.0,3232.5,0.00397897]
[1641948582168,0.77353,3232.9,3232.5,0.00397897]
[1641948582369,1.62363,3232.9,3232.5,0.00397897]
[1641948582567,1.62363,3232.9,3232.2,0.00568424]
[1641948582768,1.62363,3232.9,3231.8,0.00795793]
[1641948582769,0.77362,3232.7,3231.8,0.00795793]
[1641948583211,1.5472356,3232.7,3231.8,0.00795793]
[1641948583615,1.15292744,3231.9,3231.8,0.00795793]
[1641948583814,1.15292744,3231.9,3231.8,2.80795793]
[1641948584918,1.15292744,3231.9,3231.8,5.45795793]
[1641948585118,1.1395,3232.9,3231.8,5.45795793]
[1641948585320,0.3,3233.0,3231.9,2.48346493]
[1641948585516,5.2964,3233.3,3231.9,0.00738951]
[1641948585717,5.2964,3233.3,3232.0,0.00682108]
[1641948585919,0.7735294,3232.9,3231.9,1.00738951]
[1641948586123,1.39698633,3232.1,3231.9,1.00738951]
[1641948586318,1.39698633,3232.1,3232.0,4.50682108]
[1641948586989,1.39698633,3232.1,3232.0,0.00682108]
[1641948587377,1.39698633,3232.1,3231.8,0.00795793]
[1641948587579,1.39698633,3232.1,3231.7,0.00852636]
[1641948587781,1.39698633,3232.1,3231.6,0.00909478]
[1641948588178,1.39698633,3232.1,3231.5,0.0096632]
[1641948588782,2.17069603,3232.1,3231.5,0.0096632]
[1641948588980,0.77371,3232.0,3231.5,0.0096632]
[1641948590382,1.5474609,3232.0,3231.5,0.0096632]
[1641948590810,0.77371,3232.0,3231.5,0.0096632]
[1641948592413,1.44879556,3231.6,3231.5,0.0096632]
[1641948592914,1.44879556,3231.6,3231.5,2.3096632]
[1641948596596,2.38689556,3231.6,3231.5,0.0096632]
[1641948597394,3.16075556,3231.6,3231.5,0.0096632]
[1641948601122,2.38689556,3231.6,3231.5,0.0096632]
[1641948601423,3.8559,3232.7,3231.6,0.01044594]
[1641948601821,3.8559,3232.7,3231.7,0.00852636]
[1641948602268,1.10267362,3232.3,3231.8,0.00479239]
[1641948602666,1.10267362,3232.3,3231.9,0.00738951]
[1641948603069,1.10267362,3232.3,3231.5,0.0096632]
[1641948603267,1.27226837,3231.8,3231.5,0.0096632]
[1641948603467,3.6848,3232.4,3231.5,1.0096632]
[1641948603667,3.6848,3232.4,3231.6,0.445]
[1641948603869,3.6848,3232.4,3231.8,0.77343]
[1641948604070,3.8559,3232.7,3231.9,0.445]
[1641948604272,8.43371087,3233.2,3231.9,0.75238951]
[1641948604469,1.22437302,3232.8,3232.1,1.49277626]
[1641948604669,1.22437302,3232.8,3232.1,1.79277626]
[1641948604868,3.93209997,3233.2,3232.2,0.00568424]
[1641948605469,3.93209997,3233.2,3232.2,0.77901424]
[1641948605732,3.93209997,3233.2,3232.3,0.07732]
[1641948605921,3.93209997,3233.2,3232.3,1.45212101]
[1641948606119,1.28657357,3232.8,3232.4,0.30454739]
[1641948606322,1.28657357,3232.8,3232.5,0.07732]
[1641948606520,1.28657357,3232.8,3232.5,0.08129897]
[1641948606720,1.28657357,3232.8,3232.6,0.00341054]
[1641948607126,2.06008357,3232.8,3232.4,0.00454739]
[1641948607526,2.83358747,3232.8,3232.4,0.00454739]
[1641948607727,2.83358747,3232.8,3232.2,0.00568424]
[1641948608429,1.49465792,3232.0,3231.8,0.00795793]
[1641948608827,2.62074,3232.8,3231.8,0.00795793]
[1641948608828,0.3,3232.8,3231.8,0.00795793]
[1641948609029,1.1469,3233.5,3231.9,18.525]
[1641948609229,4.23209997,3233.2,3231.9,0.445]
[1641948609465,4.23209997,3233.2,3232.0,1.00682108]
[1641948609664,4.23209997,3233.2,3232.0,1.866318]
[1641948609864,5.77892207,3233.2,3232.1,0.00625266]
[1641948610069,4.23209997,3233.2,3232.1,0.00625266]
[1641948610667,1.37751059,3232.6,3232.1,1.00625266]
[1641948611068,1.37751059,3232.6,3232.2,0.00568424]
[1641948611269,1.37751059,3232.6,3232.3,0.07734]
[1641948611471,3.93209997,3233.2,3232.3,0.07734]
[1641948611672,3.93209997,3233.2,3232.4,0.00454739]
[1641948611871,4.70549997,3233.2,3232.4,0.00454739]
[1641948612074,5.47890517,3233.2,3232.4,0.00454739]
[1641948612273,5.47890517,3233.2,3232.2,0.07732]
[1641948612274,5.47890517,3233.2,3232.3,0.00511581]
[1641948612471,3.93209997,3233.2,3232.3,0.00511581]
[1641948613519,1.47467956,3233.0,3232.3,1.29560708]
[1641948613919,1.47467956,3233.0,3232.4,1.44753627]
[1641948614124,1.47467956,3233.0,3232.4,1.30454739]
[1641948614323,1.47467956,3233.0,3232.5,0.00397897]
[1641948614928,1.47467956,3233.0,3232.4,0.3]
[1641948615126,1.47467956,3233.0,3232.5,0.00397897]
[1641948615725,1.47467956,3233.0,3232.4,0.00454739]
[1641948615931,3.7939,3233.2,3232.4,0.445]
[1641948616127,3.6459,3233.6,3232.5,18.15732]
[1641948616329,3.6459,3233.6,3232.6,0.445]
[1641948616530,3.7921,3233.7,3232.7,0.07731]
[1641948616531,0.00170527,3233.5,3232.7,0.07731]
[1641948616727,0.00170527,3233.5,3232.8,0.445]
[1641948616977,1.12117771,3233.4,3232.9,0.07731]
[1641948617188,0.00113684,3233.4,3233.0,1.21814]
[1641948617385,1.54632,3234.6,3233.0,1.21814]
[1641948617386,0.00227369,3233.6,3233.1,0.07731]
[1641948617586,0.00227369,3233.6,3233.3,18.08]
[1641948617785,0.00625265,3234.3,3233.4,0.07731]
[1641948617985,0.00625265,3234.3,3233.4,1.07731]
[1641948618187,3.7272,3234.6,3233.4,1.07731]
[1641948618188,1.3228624,3233.8,3233.4,1.07731]
[1641948618387,1.3228624,3233.8,3233.4,0.07731]
[1641948618685,0.00284211,3233.7,3233.4,0.02731]
[1641948619086,0.00227369,3233.6,3233.4,0.02731]
[1641948619389,0.00682108,3234.4,3233.4,0.02731]
[1641948619585,0.00682108,3234.4,3233.4,1.02731]
[1641948619786,0.05667,3234.5,3233.5,2.58291699]
[1641948619787,0.00625265,3234.3,3233.5,2.58291699]
[1641948619990,1.26477609,3233.9,3233.5,2.58291699]
[1641948620189,1.26477609,3233.9,3233.6,1.0]
[1641948620389,0.00341054,3233.8,3233.7,2.49225499]
[1641948620590,0.00341054,3233.8,3233.5,3.63775927]
[1641948620849,0.00341054,3233.8,3233.7,2.45041158]
[1641948621047,1.26477609,3233.9,3233.5,1.0]
[1641948621251,0.00341054,3233.8,3233.6,2.61732765]
[1641948621448,0.00341054,3233.8,3233.5,1.0]
[1641948621648,0.05667,3234.5,3233.5,1.0]
[1641948621649,0.00284211,3233.7,3233.6,2.63098582]
[1641948621948,0.00284211,3233.7,3233.6,2.60468424]
[1641948622148,0.00284211,3233.7,3233.6,3.60468424]
[1641948622348,0.00284211,3233.7,3233.5,1.0]
[1641948622748,7.1764117,3234.6,3233.5,1.0]
[1641948622749,0.00227369,3233.6,3233.5,1.0]
[1641948623152,0.7731202,3234.2,3233.5,1.0]
[1641948623349,7.9495217,3234.6,3233.5,1.0]
[1641948623550,0.0073895,3234.5,3233.5,1.0]
[1641948623949,1.13763132,3233.6,3233.4,0.5223]
[1641948624349,0.00170527,3233.5,3233.4,3.0223]
[1641948624578,0.00170527,3233.5,3233.4,4.0223]
[1641948625380,0.00170527,3233.5,3233.4,1.5223]
[1641948625580,0.00170527,3233.5,3233.4,0.0773]
[1641948626980,0.77500527,3233.5,3233.1,2.32417324]
[1641948627386,0.00113684,3233.4,3233.1,2.32417324]
[1641948630248,0.00113684,3233.4,3233.1,2.40148324]
[1641948631650,0.00113684,3233.4,3233.1,20.48148324]
[1641948631852,0.00113684,3233.4,3233.2,1.0]
[1641948632098,0.00113684,3233.4,3233.1,3.40148324]
[1641948632301,0.00113684,3233.4,3233.1,2.40148324]
[1641948632498,0.00113684,3233.4,3233.2,1.0]
[1641948632797,0.00113684,3233.4,3233.1,3.40148324]
[1641948633198,0.00113684,3233.4,3233.1,3.25148324]
[1641948633698,0.00113684,3233.4,3233.1,2.25148324]
[1641948633901,0.00113684,3233.4,3233.1,2.17417324]
[1641948636637,0.77448434,3233.4,3233.1,2.17417324]
[1641948637538,0.77337,3233.3,3233.1,2.17417324]
[1641948638839,1.07337,3233.3,3233.1,2.17417324]
[1641948639039,0.05668,3233.2,3233.1,2.17417324]
[1641948641285,0.77337,3233.3,3233.1,2.17417324]
[1641948643834,1.07337,3233.3,3233.1,2.17417324]
[1641948644734,1.13005,3233.3,3233.1,2.17417324]
[1641948645136,1.43005,3233.3,3233.1,2.17417324]
[1641948645336,2.43005,3233.3,3233.1,2.17417324]
[1641948649289,2.43005,3233.3,3233.1,2.12417324]
[1641948651933,1.07337,3233.3,3233.1,2.12417324]
[1641948652136,0.77337,3233.3,3233.1,2.12417324]
[1641948653542,1.07337,3233.3,3233.1,2.12417324]
[1641948656383,2.07337,3233.3,3233.1,2.12417324]
[1641948656583,2.37337,3233.3,3233.1,2.12417324]
[1641948657390,0.77356,3232.7,3232.1,1.2338]
[1641948657589,0.77356,3232.7,3231.9,3.24731]
[1641948657590,1.23738162,3232.4,3231.9,3.24731]
[1641948657791,1.23738162,3232.4,3232.2,0.00568424]
[1641948657989,1.53738162,3232.4,3232.2,0.00568424]
[1641948658235,1.53738162,3232.4,3231.9,0.00738951]
[1641948658734,0.77372,3232.2,3231.9,0.00738951]
[1641948659934,0.7737,3232.1,3231.9,0.00738951]
[1641948660535,2.78481162,3232.4,3231.9,0.00738951]
[1641948661997,0.7736,3232.3,3231.9,0.00738951]
[1641948668542,3.9831,3232.8,3232.0,0.0446909]
[1641948668942,3.9831,3232.8,3232.1,0.00625266]
[1641948669346,4.75658,3232.8,3232.1,0.00625266]
[1641948669583,4.75658,3232.8,3231.9,0.00738951]
[1641948669783,0.773614,3232.7,3231.9,0.00738951]
[1641948669986,0.05686,3232.6,3231.9,0.00738951]
[1641948670884,0.77367,3232.3,3231.9,0.00738951]
[1641948671084,0.77372,3232.2,3231.9,0.00738951]
[1641948671786,1.47837808,3232.1,3231.9,0.00738951]
[1641948672588,2.25209808,3232.1,3231.9,0.00738951]
[1641948674843,1.47837808,3232.1,3231.9,0.00738951]
[1641948675444,0.7736,3232.3,3231.9,0.00738951]
[1641948675845,0.8303,3232.7,3231.9,0.00738951]
[1641948675846,0.05668,3232.7,3231.9,0.00738951]
[1641948676044,5.53022,3232.8,3231.9,0.00738951]
[1641948676245,0.77358,3232.4,3231.9,0.00738951]
[1641948677688,0.77358,3232.4,3231.9,0.78095261]
[1641948677987,0.77358,3232.4,3232.0,0.00682108]
[1641948678189,1.5099837,3232.3,3232.0,0.00682108]
[1641948678387,0.77362,3232.2,3232.0,0.00682108]
[1641948678789,0.77362,3232.2,3231.8,7.803]
[1641948678790,0.77362,3232.2,3231.9,0.00738951]
[1641948680088,1.5099837,3232.3,3231.9,0.00738951]
[1641948681941,2.2835837,3232.3,3231.9,0.00738951]
[1641948684615,1.5099837,3232.3,3231.9,0.00738951]
[1641948685815,1.5099837,3232.3,3232.0,0.7735369]
[1641948686014,1.5099837,3232.3,3232.0,1.0735369]
[1641948686219,1.5099837,3232.3,3232.1,0.00625266]
[1641948688640,0.83018,3232.7,3232.1,0.00625266]
[1641948689242,0.83018,3232.7,3232.2,0.7734848]
[1641948689441,0.83018,3232.7,3232.3,0.3]
[1641948689641,0.7735,3232.7,3232.3,0.30511581]
[1641948689842,0.7735,3232.7,3232.4,0.00454739]
[1641948690442,1.31143702,3232.5,3232.4,0.00454739]
[1641948691243,1.31143702,3232.5,3232.3,0.00511581]
[1641948691842,1.31143702,3232.5,3232.1,0.00625266]
[1641948692096,1.31143702,3232.5,3232.2,0.77348]
[1641948692497,1.31143702,3232.5,3232.3,0.00511581]
[1641948693499,2.08498702,3232.5,3232.3,0.00511581]
[1641948693904,2.08498702,3232.5,3232.0,0.30682108]
[1641948694301,2.08498702,3232.5,3232.1,0.00625266]
[1641948695100,1.31143702,3232.5,3232.1,0.00625266]
[1641948696538,1.31143702,3232.5,3232.1,0.30625266]
[1641948697344,0.77354,3232.6,3232.1,0.30625266]
[1641948697745,1.54705,3232.9,3232.2,0.77347]
[1641948698145,1.54705,3232.9,3232.3,0.00511581]
[1641948698546,0.77352,3232.6,3232.3,0.00511581]
[1641948699784,0.77352,3232.6,3232.1,0.00625266]
[1641948703841,0.77352,3232.6,3231.9,0.00738951]
[1641948704448,0.05668,3232.5,3231.9,0.00738951]
[1641948704643,0.77381,3232.2,3231.9,0.00738951]
[1641948704842,0.05668,3232.1,3231.9,0.00738951]
[1641948705041,0.05666,3232.5,3231.9,0.00738951]
[1641948705847,1.5476,3232.1,3231.9,0.00738951]
[1641948706051,0.05666,3232.0,3231.9,0.00738951]
[1641948707097,0.83043,3232.0,3231.9,0.00738951]
[1641948710498,0.77377,3232.0,3231.9,0.00738951]
[1641948714043,0.05666,3232.4,3231.9,0.00738951]
[1641948714246,0.77359,3232.4,3231.9,0.00738951]
[1641948714523,1.55881469,3232.7,3231.9,0.00738951]
[1641948714715,1.55881469,3232.7,3231.9,0.78092951]
[1641948714915,3.84178,3232.8,3232.1,1.15650527]
[1641948715115,2.32107,3232.9,3232.1,1.15650527]
[1641948715917,0.77353,3232.6,3232.0,0.00682108]
[1641948716318,0.77353,3232.6,3231.9,0.00738951]
[1641948717519,1.36235583,3232.5,3231.9,0.00738951]
[1641948717721,0.77363,3232.2,3231.9,0.00738951]
[1641948722102,0.77358,3232.4,3232.0,1.27276932]
[1641948722503,0.77358,3232.4,3232.1,0.00625266]
[1641948723304,0.77358,3232.4,3231.9,0.00738951]
[1641948725304,0.77358,3232.4,3231.9,0.78096181]
[1641948725751,0.77358,3232.4,3232.0,0.00682108]
[1641948726954,0.77358,3232.4,3231.9,0.00738951]
[1641948727655,0.77358,3232.4,3231.9,0.78100251]
[1641948728055,0.77358,3232.4,3232.0,0.00682108]
[1641948734549,0.35668,3232.3,3232.0,0.00682108]
[1641948734749,0.77387,3232.2,3231.9,0.00738951]
[1641948734952,0.05668,3232.1,3231.9,0.00738951]
[1641948735249,0.05666,3232.2,3231.9,0.00738951]
[1641948736050,1.54773,3232.1,3231.9,0.00738951]
[1641948736251,2.55666,3232.0,3231.9,0.00738951]
[1641948737596,3.33052,3232.0,3231.9,0.00738951]
[1641948737796,4.33052,3232.0,3231.9,0.00738951]
[1641948740398,5.0,3231.9,3231.4,7.503]
[1641948740604,0.77395,3231.7,3231.4,7.503]
[1641948740846,5.5,3231.6,3231.5,0.00227369]
[1641948741046,6.3017,3231.6,3231.5,0.00227369]
[1641948741248,7.3017,3231.6,3230.8,0.00625266]
[1641948741445,1.46726145,3231.4,3230.8,0.00625266]
[1641948741649,0.77411,3231.2,3230.8,0.00625266]
[1641948741848,0.05675,3231.1,3230.8,0.00625266]
[1641948742050,0.77415,3231.1,3230.8,0.00625266]
[1641948742255,0.35677,3231.0,3230.8,0.00625266]
[1641948742655,0.05677,3231.0,3230.8,0.00625266]
[1641948742854,0.83091,3231.0,3230.8,0.00625266]
[1641948743453,0.30379869,3230.9,3230.8,0.00625266]
[1641948744055,0.30379869,3230.9,3230.3,0.00909477]
[1641948744254,0.77407,3230.6,3230.3,0.00909477]
[1641948745300,0.77407,3230.6,3229.9,1.51950489]
[1641948745498,0.00113684,3230.5,3229.9,1.51950489]
[1641948745699,0.00113684,3230.5,3230.0,0.00170527]
[1641948745900,0.00284211,3230.8,3230.0,0.00170527]
[1641948746299,1.27776034,3230.6,3230.0,0.00170527]
[1641948746501,0.00227369,3230.7,3230.0,0.30170527]
[1641948746703,0.00284211,3230.8,3230.1,0.07738]
[1641948746904,0.00170527,3230.6,3230.1,0.07851685]
[1641948747102,0.00227369,3230.7,3230.1,0.00113685]
[1641948747302,0.00284211,3230.8,3230.1,0.00113685]
[1641948747505,1.25727093,3230.5,3230.1,0.00113685]
[1641948747906,0.77408,3230.4,3230.1,0.00113685]
[1641948751264,1.25727093,3230.5,3230.1,0.00113685]
[1641948752298,1.25727093,3230.5,3230.1,0.77513685]
[1641948752908,1.25727093,3230.5,3230.1,0.00113685]
[1641948753498,1.25727093,3230.5,3230.1,0.77513685]
[1641948755499,1.25727093,3230.5,3230.1,0.00113685]
[1641948757447,0.77403,3230.6,3230.1,0.77515105]
[1641948757648,0.05668,3230.7,3230.1,0.77513685]
[1641948757855,0.06004211,3230.8,3230.1,0.77513685]
[1641948758048,0.00170527,3230.6,3230.2,0.3]
[1641948758348,0.00227369,3230.7,3230.2,0.3]
[1641948758748,0.00170527,3230.6,3230.3,0.773955]
[1641948759153,0.00284211,3230.8,3230.4,1.07394]
[1641948759604,0.00227369,3230.7,3230.4,1.07394]
[1641948760006,0.00170527,3230.6,3230.4,1.07394]
[1641948760411,0.00284211,3230.8,3230.4,1.07394]
[1641948760607,0.00284211,3230.8,3230.4,0.3]
[1641948760809,0.00227369,3230.7,3230.4,0.3]
[1641948761009,0.00227369,3230.7,3230.2,0.3]
[1641948761210,0.00170527,3230.6,3230.2,0.3]
[1641948761613,0.05900211,3230.8,3230.3,1.5478961]
[1641948761811,0.00284211,3230.8,3230.3,1.5478961]
[1641948762012,0.00227369,3230.7,3230.4,0.3]
[1641948762412,0.00170527,3230.6,3230.4,0.3]
[1641948762615,0.00170527,3230.6,3230.4,1.45944447]
[1641948762917,0.30379869,3230.9,3230.6,0.01963809]
[1641948762918,0.00284211,3230.8,3230.6,0.01963809]
[1641948763246,0.30379869,3230.9,3230.6,0.7738408]
[1641948763247,0.00227369,3230.7,3230.6,0.7738408]
[1641948770411,0.00227369,3230.7,3230.5,0.77384]
[1641948770842,0.00170527,3230.6,3230.4,2.6216108]
[1641948771241,0.00284211,3230.8,3230.4,2.6216108]
[1641948771646,0.00227369,3230.7,3230.4,2.6216108]
[1641948772047,0.00170527,3230.6,3230.4,2.6216108]
[1641948772448,0.00284211,3230.8,3230.4,2.6216108]
[1641948772848,0.00227369,3230.7,3230.4,2.6216108]
[1641948773349,0.00170527,3230.6,3230.4,2.6216108]
[1641948773752,0.00284211,3230.8,3230.4,2.6216108]
[1641948774157,0.00227369,3230.7,3230.4,2.6216108]
[1641948774624,0.00170527,3230.6,3230.4,2.6216108]
[1641948775124,0.30379869,3230.9,3230.4,2.6216108]
[1641948775125,0.00284211,3230.8,3230.4,2.6216108]
[1641948775525,0.00227369,3230.7,3230.4,3.3954808]
[1641948775725,0.00227369,3230.7,3230.4,3.6954808]
[1641948775929,0.00170527,3230.6,3230.5,0.7738348]
[1641948776127,0.00170527,3230.6,3230.5,6.6738348]
[1641948777230,0.00170527,3230.6,3230.5,6.7512148]
[1641948777630,0.00170527,3230.6,3230.5,9.39007545]
[1641948778559,0.00170527,3230.6,3230.5,9.31269545]
[1641948783514,0.00170527,3230.6,3230.5,9.39007545]
[1641948787558,0.00170527,3230.6,3230.5,2.63886065]
[1641948787757,0.90200527,3230.6,3230.5,2.63886065]
[1641948787958,0.95868527,3230.6,3230.5,2.63886065]
[1641948788756,2.12609634,3230.6,3230.5,2.63886065]
[1641948789701,2.12609634,3230.6,3230.1,2.63886065]
[1641948789900,0.05668,3230.5,3230.1,2.63886065]
[1641948790804,0.05668,3230.5,3230.1,3.71288065]
[1641948791003,0.00170527,3230.6,3230.1,3.49026065]
[1641948791305,0.00170527,3230.6,3230.2,1.0]
[1641948791509,0.00170527,3230.6,3230.3,1.547667]
[1641948791704,0.00170527,3230.6,3230.4,1.52057315]
[1641948792506,0.00170527,3230.6,3230.4,2.52057315]
[1641948792906,0.00170527,3230.6,3230.5,2.63886065]
[1641948793108,0.00170527,3230.6,3230.5,3.63886065]
[1641948795868,0.00170527,3230.6,3230.5,3.93886065]
[1641948798308,0.00170527,3230.6,3230.5,3.95110676]
[1641948798504,0.00170527,3230.6,3230.5,9.97348676]
[1641948798705,0.00170527,3230.6,3230.5,28.05348676]
[1641948798905,0.05673,3232.4,3231.4,0.77365]
[1641948799107,0.05673,3232.4,3231.4,0.3]
[1641948799108,1.55799682,3232.0,3231.4,0.3]
[1641948799907,2.33170682,3232.0,3231.6,0.77367]
[1641948801980,1.55799682,3232.0,3231.7,0.3]
[1641948802774,1.55799682,3232.0,3231.6,0.77367]
[1641948803176,0.37692082,3232.4,3231.6,0.77367]
[1641948803377,0.37692082,3232.4,3231.9,0.77363]
[1641948803578,0.0096632,3232.3,3231.9,0.77363]
[1641948803775,0.05668,3232.2,3231.9,0.77363]
[1641948803977,0.83943477,3232.2,3231.9,0.77363]
[1641948804178,0.00852635,3232.1,3231.9,0.77363]
[1641948804608,0.00795793,3232.0,3231.9,0.77363]
[1641948806907,0.00795793,3232.0,3231.9,5.51182996]
[1641948807111,0.00795793,3232.0,3231.9,6.51182996]
[1641948807306,0.00795793,3232.0,3231.9,6.95682996]
[1641948807909,0.00795793,3232.0,3231.9,7.25682996]
[1641948808953,0.00795793,3232.0,3231.9,7.33417996]
[1641948809155,0.05668,3233.1,3232.0,5.5]
[1641948809355,0.83003,3233.5,3232.5,0.77334]
[1641948809554,0.00568423,3233.0,3232.5,1.07334]
[1641948809760,0.00568423,3233.0,3232.5,1.37334]
[1641948809955,0.00511581,3232.9,3232.5,1.37334]
[1641948810357,0.00454738,3232.8,3232.5,1.37334]
[1641948810556,0.00454738,3232.8,3232.6,0.77339]
[1641948810754,0.00397896,3232.7,3232.6,1.07339]
[1641948810954,0.00397896,3232.7,3232.6,1.37339]
[1641948811355,0.00397896,3232.7,3232.6,5.37339]
[1641948812018,0.00397896,3232.7,3232.6,2.37339]
[1641948812210,0.00397896,3232.7,3232.5,1.93392]
[1641948812211,0.00397896,3232.7,3232.5,1.1606]
[1641948812614,0.00341054,3232.6,3232.5,1.1606]
[1641948813014,0.00795792,3232.6,3232.5,1.1606]
[1641948813213,0.00795792,3232.6,3232.5,3.5606]
[1641948813613,0.00795792,3232.6,3232.5,2.7]
[1641948813811,0.00795792,3232.6,3232.5,3.0]
[1641948814412,0.00795792,3232.6,3232.5,0.6]
[1641948814613,0.00795792,3232.6,3232.5,0.3]
[1641948815016,0.00795792,3232.6,3232.3,1.07346]
[1641948815413,0.00284211,3232.5,3232.3,1.07346]
[1641948815852,0.00227369,3232.4,3232.3,1.07346]
[1641948816251,0.00227369,3232.4,3232.3,0.3]
[1641948816551,0.00227369,3232.4,3232.2,0.3]
[1641948816751,0.00227369,3232.4,3232.1,1.6]
[1641948816953,0.00170527,3232.3,3232.1,0.6]
[1641948817154,0.00170527,3232.3,3232.1,1.6]
[1641948817354,0.00113684,3232.2,3232.1,1.6]
[1641948817557,0.00113684,3232.2,3232.1,5.1]
[1641948820214,0.00113684,3232.2,3232.1,7.05]
[1641948820409,0.00113684,3232.2,3232.1,5.1]
[1641948824963,0.00113684,3232.2,3232.1,1.6]
[1641948825161,0.00113684,3232.2,3232.1,0.6]
[1641948825563,0.00113684,3232.2,3232.0,1.67732]
[1641948825761,0.00113684,3232.2,3232.0,1.6]
[1641948832759,0.00113684,3232.2,3232.1,4.37734]
[1641948833160,0.00113684,3232.2,3232.1,5.67734]
[1641948834809,0.00113684,3232.2,3232.1,1.37734]
[1641948835010,0.00113684,3232.2,3232.1,0.3]
[1641948835514,0.00113684,3232.2,3232.0,1.67734]
[1641948842613,0.00113684,3232.2,3232.1,5.895]
[1641948842811,0.00113684,3232.2,3232.1,24.9231]
[1641948843010,0.00113684,3232.2,3232.1,26.2231]
[1641948843214,3.684e-05,3232.2,3232.1,28.8604769]
[1641948843417,0.0567,3233.7,3232.2,5.45]
[1641948843613,0.29334397,3233.8,3232.9,1.02141]
[1641948843815,0.00738951,3233.5,3233.0,0.445]
[1641948844213,0.00682108,3233.4,3233.1,1.3678524]
[1641948844413,0.00682108,3233.4,3233.3,6.90007068]
[1641948844713,1.22520058,3234.0,3233.6,1.30438853]
[1641948844914,1.22520058,3234.0,3233.3,1.6]
[1641948845114,0.0096632,3233.9,3233.3,0.6]
[1641948845313,0.0096632,3233.9,3233.3,0.3]
[1641948845514,1.22520058,3234.0,3233.2,0.67729]
[1641948845515,0.00909478,3233.8,3233.2,0.67729]
[1641948846060,0.00852635,3233.7,3233.3,1.23381285]
[1641948846458,0.00795793,3233.6,3233.3,2.78008285]
[1641948846657,0.00795793,3233.6,3233.4,1.77314]
[1641948846859,0.00738951,3233.5,3233.4,4.52314]
[1641948848063,0.00738951,3233.5,3233.4,3.75]
[1641948848865,0.00738951,3233.5,3233.4,6.75]
[1641948849362,0.00738951,3233.5,3233.4,3.75]
[1641948849819,0.00738951,3233.5,3233.4,6.75]
[1641948850119,0.00738951,3233.5,3233.4,1.3]
[1641948850919,0.00738951,3233.5,3233.4,5.75]
[1641948851824,0.00738951,3233.5,3233.4,7.195]
[1641948853028,0.00738951,3233.5,3233.4,8.3191]
[1641948853256,0.00738951,3233.5,3233.4,9.09214]
[1641948854655,0.00738951,3233.5,3233.4,8.16945]
[1641948854855,0.00738951,3233.5,3233.4,6.27231]
[1641948855456,0.00738951,3233.5,3233.4,0.52231]
[1641948855758,0.00738951,3233.5,3233.4,3.12231]
[1641948855957,0.00738951,3233.5,3233.4,0.445]
[1641948856160,0.00738951,3233.5,3233.3,1.1476]
[1641948856558,0.00682108,3233.4,3233.3,1.1476]
[1641948856758,0.00682108,3233.4,3233.3,5.8476]
[1641948857206,0.00682108,3233.4,3233.3,7.38075878]
[1641948857706,0.00682108,3233.4,3233.3,8.98075878]
[1641948858606,0.00682108,3233.4,3233.3,1.6]
[1641948859112,0.00682108,3233.4,3233.3,0.3]
[1641948859306,0.00682108,3233.4,3233.3,5.52731]
[1641948859606,0.00682108,3233.4,3233.3,8.81829]
[1641948860408,0.00682108,3233.4,3233.3,11.5112557]
[1641948867609,0.00682108,3233.4,3233.3,11.8112557]
[1641948868457,0.00682108,3233.4,3233.3,29.8912557]
[1641948869761,0.00682108,3233.4,3233.3,11.8112557]
[1641948870565,0.00682108,3233.4,3233.3,29.8912557]
[1641948879264,0.00682108,3233.4,3233.3,11.8112557]
[1641948879526,0.00682108,3233.4,3233.3,10.1879657]
[1641948880317,0.00682108,3233.4,3233.3,4.7379657]
[1641948880719,0.00682108,3233.4,3233.3,3.57424074]
[1641948881516,0.00682108,3233.4,3233.3,6.62424074]
[1641948881917,0.00682108,3233.4,3233.3,7.76114673]
[1641948882918,0.00682108,3233.4,3233.3,8.53421673]